bitfinex-derivatives/quotes_ETHF0:USTF0_20260207
["timestamp","ask_amount","ask_price","bid_price","bid_amount"]
[1770448117373,11.75164915,2037.2,2035.4,0.28814031]
[1770448117670,11.75164915,2037.2,2035.1,0.00560213]
[1770448117867,11.75164915,2037.2,2035.1,0.01673449]
[1770448118171,11.75917734,2037.0,2035.1,0.00560213]
[1770448118376,11.75917734,2036.9,2035.1,0.00560213]
[1770448118776,11.75917734,2036.9,2035.1,0.26256449]
[1770448118968,11.75917734,2036.9,2035.1,0.25143213]
[1770448119569,11.75917734,2036.9,2035.2,0.24581]
[1770448119970,16.66117734,2036.9,2035.1,0.00560213]
[1770448120172,11.5943553,2036.8,2035.1,0.00560213]
[1770448120876,11.5943553,2036.8,2035.1,0.34637857]
[1770448121576,11.5943553,2036.8,2035.1,0.00560213]
[1770448122372,16.56888537,2036.6,2035.1,0.00560213]
[1770448122576,11.66688537,2036.5,2035.1,0.00560213]
[1770448122778,11.66688537,2036.4,2035.1,0.00560213]
[1770448123076,11.76474352,2036.6,2035.1,0.00560213]
[1770448123280,11.76474352,2036.6,2035.2,0.24581]
[1770448123773,11.76474352,2036.6,2035.1,0.00560213]
[1770448123976,11.76474352,2036.3,2035.1,0.00560213]
[1770448125677,11.72332152,2036.1,2034.3,0.24592]
[1770448125870,11.72332152,2035.9,2034.4,0.32875399]
[1770448126077,11.72332152,2035.9,2034.5,0.08284399]
[1770448126681,11.72332152,2035.9,2034.5,0.08918214]
[1770448127077,11.72332152,2035.9,2034.5,0.00633815]
[1770448127275,11.72332152,2035.3,2033.3,0.24603]
[1770448127474,4.7450482,2035.6,2032.8,0.13586026]
[1770448127475,11.96915152,2035.1,2032.8,0.13586026]
[1770448127775,8.142,2036.2,2034.1,0.13586026]
[1770448127776,11.69681339,2036.2,2034.1,0.13586026]
[1770448128177,11.7028094,2036.2,2034.4,0.13586026]
[1770448128371,11.7028094,2036.2,2034.6,0.13586026]
[1770448129985,11.7028094,2036.2,2034.8,0.59487827]
[1770448130190,11.7028094,2036.2,2034.9,0.59486827]
[1770448130390,11.7028094,2036.2,2035.0,0.34901827]
[1770448130593,11.7028094,2036.2,2035.1,0.24582]
[1770448130794,4.7450482,2037.2,2035.6,0.59477827]
[1770448130987,11.59023438,2037.1,2036.1,0.34901827]
[1770448131186,11.59023438,2037.9,2036.5,0.34901827]
[1770448131794,11.46708556,2037.6,2035.9,0.59531592]
[1770448131986,11.46708556,2037.6,2035.6,0.84107592]
[1770448132189,4.7450482,2037.7,2035.3,4.34095702]
[1770448132190,4.7450482,2036.9,2035.3,2.89399689]
[1770448132493,11.46412697,2036.8,2035.1,2.89399689]
[1770448132792,11.46412697,2036.8,2035.5,0.6012331]
[1770448132990,11.46412697,2036.6,2035.5,0.00445148]
[1770448133990,11.46412697,2036.6,2034.7,2.89399689]
[1770448134195,11.51371068,2036.2,2034.7,2.89399689]
[1770448134397,11.51371068,2035.8,2034.3,2.89399689]
[1770448134901,11.51371068,2035.8,2034.0,2.89399689]
[1770448135096,11.51896565,2035.8,2034.0,0.00532913]
[1770448135491,11.51371068,2035.4,2034.0,0.00532913]
[1770448135686,10.96230587,2034.6,2033.1,2.89399689]
[1770448135895,10.96230587,2034.2,2032.8,2.89399689]
[1770448136086,10.96230587,2034.2,2032.8,4.7556947]
[1770448136292,10.96230587,2034.2,2032.6,0.24612]
[1770448136492,10.96230587,2034.2,2032.8,2.50451515]
[1770448136697,10.96689823,2034.2,2032.8,2.50451515]
[1770448136897,10.96689823,2034.2,2033.0,5.42560395]
[1770448137097,10.96689823,2034.2,2033.2,2.50451515]
[1770448137298,0.00459236,2034.2,2033.3,2.50451515]
[1770448137490,8.98486635,2033.7,2033.1,3.1671588]
[1770448137693,8.98486635,2033.7,2033.1,5.3320714]
[1770448137899,10.96689823,2034.2,2033.3,2.1649126]
[1770448138092,0.00459236,2034.2,2033.4,5.0860014]
[1770448138296,0.00459236,2034.2,2033.2,2.9210888]
[1770448138297,10.96689823,2034.2,2033.2,2.9210888]
[1770448138496,10.96689823,2034.2,2032.9,2.9210888]
[1770448138798,10.96689823,2034.2,2032.9,2.1649126]
[1770448139501,10.96689823,2034.2,2033.0,2.1649126]
[1770448139697,10.96689823,2034.2,2033.1,1.84796048]
[1770448139894,0.00459236,2034.2,2033.1,1.84796048]
[1770448140195,10.96230587,2034.5,2033.4,1.84796048]
[1770448140396,10.96230587,2034.8,2033.7,1.84796048]
[1770448140599,10.96230587,2034.8,2033.4,7.666137]
[1770448140600,10.96230587,2034.8,2033.5,2.9210888]
[1770448140899,10.96230587,2034.8,2033.3,1.84796048]
[1770448141099,10.96616658,2034.8,2033.3,1.85255284]
[1770448141398,10.96616658,2034.8,2033.6,1.84796048]
[1770448141597,0.00386071,2034.8,2033.6,1.84796048]
[1770448141803,0.00386071,2034.8,2033.9,2.39404242]
[1770448142102,10.96616658,2034.8,2033.5,2.9210888]
[1770448142299,10.96616658,2034.8,2033.4,2.9210888]
[1770448142604,10.96616658,2034.8,2033.3,0.00459236]
[1770448144600,10.96230587,2034.1,2032.2,11.51749013]
[1770448144795,10.96230587,2033.6,2032.0,0.2462]
[1770448144999,10.96230587,2033.6,2031.6,2.9210888]
[1770448145303,10.96230587,2033.6,2031.5,2.9210888]
[1770448145897,10.96230587,2033.6,2031.5,10.30140379]
[1770448146207,4.7450482,2032.0,2029.7,5.84240449]
[1770448146397,4.7450482,2031.2,2029.1,17.37506548]
[1770448146596,4.7450482,2031.2,2028.5,8.71914012]
[1770448146597,4.7450482,2030.4,2028.6,11.53266099]
[1770448146797,4.7450482,2031.4,2028.8,11.53266099]
[1770448147105,4.7450482,2032.2,2029.5,11.53266099]
[1770448147303,4.7450482,2031.8,2029.7,11.53266099]
[1770448147605,0.0036699,2031.8,2030.2,11.53266099]
[1770448147796,0.0036699,2031.8,2030.2,11.77908099]
[1770448148106,11.69162411,2031.8,2030.4,11.53266099]
[1770448148310,11.69162411,2031.8,2030.4,11.14178099]
[1770448148500,11.69162411,2031.8,2030.6,11.53266099]
[1770448149002,11.69162411,2031.8,2030.7,2.90869161]
[1770448149506,11.69162411,2031.8,2030.8,2.90869161]
[1770448149705,11.69162411,2031.8,2030.7,2.90869161]
[1770448150106,11.69162411,2031.8,2030.8,14.37096948]
[1770448150297,11.69162411,2031.8,2030.1,11.46227787]
[1770448151203,11.69162411,2031.8,2030.5,11.46227787]
[1770448151406,11.69162411,2031.8,2030.1,11.46227787]
[1770448151606,11.69162411,2031.8,2030.1,11.70870787]
[1770448151807,4.7450482,2031.6,2029.8,11.46227787]
[1770448151998,11.7053027,2031.5,2029.8,11.46227787]
[1770448152199,11.7053027,2031.4,2029.7,11.46380817]
[1770448152403,11.7053027,2031.4,2029.7,0.0015303]
[1770448152901,11.7053027,2031.4,2028.5,1.45661893]
[1770448152902,11.7053027,2030.5,2028.1,0.24667]
[1770448153107,11.7053027,2030.1,2028.2,11.70893787]
[1770448153299,11.7053027,2030.1,2028.4,11.46227787]
[1770448153806,11.71169728,2030.1,2028.4,11.46227787]
[1770448154111,11.71169728,2030.1,2028.0,11.46227787]
[1770448154402,11.7053027,2029.9,2027.7,11.70899787]
[1770448155205,11.7053027,2029.5,2027.7,11.70899787]
[1770448155606,11.7053027,2029.5,2027.9,11.46227787]
[1770448155911,11.7053027,2029.5,2027.9,11.70897787]
[1770448156205,11.7053027,2029.5,2027.5,11.46227787]
[1770448156504,11.7053027,2029.5,2027.7,11.70899787]
[1770448156809,11.7053027,2029.5,2028.0,11.46227787]
[1770448157011,11.7053027,2029.5,2027.5,4.7450482]
[1770448157012,11.7053027,2030.0,2028.8,11.46227787]
[1770448157205,11.7053027,2030.0,2027.9,5.8798682]
[1770448157206,11.7053027,2030.0,2028.5,11.46227787]
[1770448157905,11.7053027,2030.0,2028.3,0.24664]
[1770448158108,11.7053027,2030.0,2028.2,11.46227787]
[1770448158109,11.7053027,2030.0,2028.2,11.70893787]
[1770448158707,0.00639458,2030.1,2026.6,2.413]
[1770448158708,0.00639458,2030.1,2027.4,0.24676]
[1770448159006,11.7053027,2029.0,2027.4,0.24675]
[1770448159209,11.7053027,2029.0,2027.7,11.46227787]
[1770448159405,11.7053027,2029.3,2028.2,11.46227787]
[1770448159611,11.7053027,2030.0,2028.4,11.46227787]
[1770448160013,11.7053027,2030.0,2028.1,11.46227787]
[1770448161013,11.7053027,2030.0,2027.6,4.7450482]
[1770448161014,11.7053027,2029.7,2027.6,11.46227787]
[1770448161506,11.7053027,2029.1,2027.4,0.24676]
[1770448161912,11.7053027,2029.0,2026.9,11.46227787]
[1770448162613,11.7053027,2029.0,2027.1,11.70907787]
[1770448162813,11.7053027,2029.0,2027.4,11.70903787]
[1770448163314,11.7053027,2029.0,2027.4,11.46227787]
[1770448163513,11.7053027,2029.0,2027.7,11.46227787]
[1770448163711,11.7053027,2029.6,2028.5,11.46227787]
[1770448164517,11.7053027,2029.6,2027.8,11.46227787]
[1770448165308,11.7053027,2029.6,2027.7,0.24672]
[1770448165717,11.7053027,2029.6,2028.2,11.46227787]
[1770448165916,11.7053027,2029.9,2028.7,0.24659]
[1770448166121,0.00639458,2030.1,2029.1,11.46227787]
[1770448166122,0.00106545,2030.1,2029.1,11.46227787]
[1770448166612,11.70636815,2030.1,2028.7,0.00532913]
[1770448166810,11.70636815,2030.1,2027.9,11.46227787]
[1770448166811,11.7053027,2029.6,2027.9,11.46227787]
[1770448167011,11.7053027,2029.6,2027.6,11.46227787]
[1770448167409,11.7053027,2030.0,2028.6,11.46227787]
[1770448167713,11.7053027,2030.0,2028.2,11.46227787]
[1770448168416,11.7053027,2030.0,2028.4,11.46227787]
[1770448168917,11.7053027,2030.0,2028.6,11.46227787]
[1770448169612,11.7053027,2030.0,2028.6,11.70888787]
[1770448169811,11.7053027,2030.0,2028.6,11.46227787]
[1770448170216,0.00106545,2030.1,2029.1,11.46227787]
[1770448170415,11.7053027,2030.6,2029.3,11.46227787]
[1770448170715,11.7053027,2030.6,2028.6,11.46227787]
[1770448171515,11.70933325,2030.6,2028.6,11.46334331]
[1770448172516,11.7053027,2030.3,2028.6,0.00106544]
[1770448173516,11.7053027,2030.3,2028.6,11.46334331]
[1770448174219,11.7053027,2030.3,2028.8,11.46227787]
[1770448174418,11.7053027,2030.3,2028.8,11.70886787]
[1770448175318,11.7053027,2030.3,2029.0,11.46227787]
[1770448175716,11.7053027,2030.3,2029.0,11.70883787]
[1770448176217,11.7053027,2030.3,2029.0,11.46227787]
[1770448176420,11.7053027,2030.3,2028.6,11.65129232]
[1770448177316,0.00403055,2030.6,2028.6,0.00106544]
[1770448177317,10.71429375,2030.1,2028.6,0.00106544]
[1770448177718,10.71429375,2030.1,2028.6,11.65129232]
[1770448178823,10.71429375,2030.1,2028.8,11.65022688]
[1770448179624,10.71429375,2030.1,2028.6,0.00106544]
[1770448180814,10.71429375,2030.1,2028.6,11.65129232]
[1770448181221,10.71429375,2030.1,2028.6,11.89790232]
[1770448181426,10.71429375,2030.1,2028.8,11.65022688]
[1770448181824,10.71429375,2030.1,2028.9,11.65022688]
[1770448182025,0.00403055,2030.6,2028.9,11.65022688]
[1770448182323,10.71429375,2031.8,2030.3,11.65022688]
[1770448182729,10.71429375,2032.1,2030.6,11.65022688]
[1770448183424,10.72032174,2032.1,2030.6,11.65451887]
[1770448183823,10.72032174,2032.1,2030.7,11.65022688]
[1770448184332,10.71429375,2032.8,2031.3,11.65022688]
[1770448184531,10.71429375,2033.5,2031.7,11.65022688]
[1770448184721,10.71429375,2033.5,2031.8,11.65022688]
[1770448184926,10.71429375,2033.5,2031.9,11.65022688]
[1770448185332,0.00559785,2033.5,2032.0,11.65022688]
[1770448185828,10.7198916,2033.5,2032.0,11.65022688]
[1770448186627,10.7198916,2033.5,2031.4,11.65022688]
[1770448187032,10.7198916,2033.5,2031.1,11.65022688]
[1770448187033,10.71429375,2033.2,2031.1,11.65022688]
[1770448187438,10.71429375,2033.2,2031.1,11.89653688]
[1770448188834,10.71429375,2033.2,2031.3,11.65022688]
[1770448189034,10.71429375,2033.2,2031.5,11.65022688]
[1770448189227,10.7198916,2033.5,2032.2,11.65022688]
[1770448189433,10.7198916,2033.5,2032.4,11.65022688]
[1770448189434,0.00559785,2033.5,2032.4,11.65022688]
[1770448189627,10.71429375,2034.6,2032.6,11.65022688]
[1770448189832,10.71429375,2035.0,2033.0,11.65022688]
[1770448190029,10.71429375,2036.1,2033.2,11.65022688]
[1770448190332,10.71429375,2036.1,2034.2,11.65022688]
[1770448190531,10.71429375,2036.1,2034.2,11.65411061]
[1770448190532,10.71936316,2036.1,2034.2,11.65411061]
[1770448190833,10.71429375,2035.9,2034.2,0.00388373]
[1770448191035,10.71429375,2035.4,2033.4,11.65022688]
[1770448191224,10.71429375,2035.4,2032.3,0.24616]
[1770448191225,10.71429375,2034.6,2032.3,11.65022688]
[1770448191627,10.71429375,2034.2,2031.9,11.65022688]
[1770448192032,10.72004702,2034.2,2031.9,11.6558914]
[1770448192333,10.71429375,2034.0,2031.9,11.6558914]
[1770448192538,10.71429375,2034.0,2031.9,0.00566452]
[1770448192927,10.71429375,2034.0,2031.9,11.6558914]
[1770448193531,10.96025375,2034.0,2031.9,0.00566452]
[1770448193731,10.71429375,2033.8,2031.9,0.00566452]
[1770448194139,15.87929375,2033.7,2031.9,0.00566452]
[1770448194335,10.71429375,2033.6,2031.9,0.00566452]
[1770448195436,10.71429375,2033.6,2031.9,11.6558914]
[1770448196839,0.00575327,2034.2,2031.9,11.6558914]
[1770448197138,10.71429375,2034.1,2032.1,11.65022688]
[1770448197344,10.71429375,2034.1,2032.3,11.65022688]
[1770448197638,10.71429375,2034.1,2033.4,0.57430605]
[1770448197836,10.71429375,2034.1,2033.4,0.00551889]
[1770448198238,10.71429375,2034.1,2032.8,11.65022688]
[1770448199137,10.71429375,2034.1,2032.8,11.65576505]
[1770448200239,10.71429375,2034.1,2032.8,0.00553817]
[1770448200641,10.71429375,2033.8,2031.5,11.65022688]
[1770448200843,10.71429375,2033.6,2031.5,11.65022688]
[1770448201341,10.71429375,2033.4,2031.5,11.65022688]
[1770448201534,0.00575327,2034.2,2031.7,4.76927006]
[1770448201734,10.72004702,2034.2,2032.5,11.89636688]
[1770448202342,10.72004702,2034.2,2032.5,11.65022688]
[1770448203644,10.72004702,2034.2,2031.9,4.76927006]
[1770448203645,0.00575327,2034.2,2032.9,11.65022688]
[1770448204350,10.71429375,2034.9,2033.3,11.65022688]
[1770448205350,10.72040142,2034.9,2033.3,11.65569153]
[1770448205542,0.00610767,2034.9,2033.3,11.65569153]
[1770448205740,0.00610767,2034.9,2033.6,11.88050624]
[1770448205941,10.71429375,2035.6,2033.6,11.88050624]
[1770448206138,13.05511673,2036.1,2033.8,11.63450624]
[1770448206346,4.919,2037.0,2033.3,0.00546465]
[1770448206347,11.02634196,2036.0,2034.3,11.63450624]
[1770448206548,11.02634196,2036.0,2033.5,5.65381332]
[1770448206738,4.919,2035.6,2033.9,11.63450624]
[1770448206944,11.02634196,2035.5,2033.9,11.63450624]
[1770448208146,11.02634196,2035.5,2033.5,11.63450624]
[1770448208542,11.02634196,2035.3,2033.5,11.63450624]
[1770448211650,10.8428006,2035.1,2033.3,0.00546465]
[1770448211946,10.8428006,2034.9,2033.3,0.00546465]
[1770448212449,10.8428006,2034.6,2032.8,11.07312885]
[1770448212644,10.8428006,2034.6,2032.8,11.31922885]
[1770448212848,10.8428006,2034.6,2032.8,11.07312885]
[1770448213549,10.8428006,2034.6,2032.8,11.07678443]
[1770448214148,10.8428006,2034.6,2032.9,11.31921885]
[1770448214453,10.8428006,2034.6,2033.0,11.07312885]
[1770448214646,10.8428006,2035.2,2033.4,11.07312885]
[1770448215050,10.84683519,2035.6,2033.8,11.31910885]
[1770448215250,10.8428006,2036.2,2034.5,11.07312885]
[1770448215449,10.8428006,2036.6,2034.9,11.07312885]
[1770448216454,10.8428006,2035.9,2034.1,11.07312885]
[1770448216850,10.8428006,2036.3,2034.4,11.07312885]
[1770448217448,10.8428006,2036.3,2034.8,11.07312885]
[1770448217653,10.84875447,2036.6,2034.8,11.31898885]
[1770448217855,10.84875447,2036.6,2034.9,11.07312885]
[1770448218052,0.00595387,2036.6,2034.9,14.19507725]
[1770448218243,0.00595387,2036.6,2035.1,11.31894885]
[1770448218443,0.00595387,2036.6,2035.1,14.19505725]
[1770448218652,0.00595387,2036.6,2035.2,11.07312885]
[1770448219047,0.00595387,2036.6,2035.2,11.31893885]
[1770448219549,10.8428006,2037.2,2035.4,11.07312885]
[1770448220454,10.8428006,2037.2,2035.4,11.31890885]
[1770448220642,10.84765995,2037.2,2035.4,11.31890885]
[1770448221044,0.00485935,2037.2,2035.8,11.07312885]
[1770448221445,0.00485935,2037.2,2035.8,11.31886885]
[1770448221847,0.00342929,2037.2,2035.8,11.31886885]
[1770448222156,10.8428006,2037.8,2036.0,11.07312885]
[1770448223151,10.84779472,2037.8,2036.0,11.07826]
[1770448223452,10.84779472,2037.8,2036.0,11.32397]
[1770448224360,10.84779472,2037.8,2036.2,11.07312885]
[1770448224563,0.00499412,2037.8,2036.2,11.07312885]
[1770448224758,10.84779472,2037.8,2036.2,11.07312885]
[1770448225359,0.00499412,2037.8,2036.3,11.07312885]
[1770448225755,0.00499412,2037.8,2036.2,20.41]
[1770448225756,0.00499412,2037.8,2036.6,11.07312885]
[1770448225956,10.8428006,2038.8,2037.0,11.07312885]
[1770448226152,10.8428006,2039.9,2037.2,11.31868885]
[1770448226353,11.0880906,2039.6,2037.2,11.07312885]
[1770448226951,11.09280357,2039.6,2037.2,11.07312885]
[1770448227351,10.84751357,2039.6,2037.8,11.07312885]
[1770448227556,10.8428006,2040.4,2038.9,11.07312885]
[1770448227958,10.8428006,2040.4,2038.5,11.07312885]
[1770448228365,10.8428006,2040.2,2038.5,11.07312885]
[1770448228565,11.09321151,2040.2,2038.2,11.07312885]
[1770448229066,10.84800151,2040.2,2038.5,4.72473573]
[1770448229262,10.84800151,2040.2,2038.6,11.07312885]
[1770448229955,10.8428006,2040.0,2038.2,11.07312885]
[1770448230355,10.8428006,2040.0,2038.3,11.07312885]
[1770448230561,10.8428006,2040.0,2038.7,11.07312885]
[1770448231062,0.00520091,2040.2,2039.0,11.07312885]
[1770448231563,0.00520091,2040.2,2039.2,11.07312885]
[1770448231767,10.8428006,2040.9,2039.4,11.07312885]
[1770448231968,10.8428006,2040.9,2039.5,11.07312885]
[1770448232263,10.8428006,2040.7,2038.5,4.72473573]
[1770448232466,10.8428006,2040.5,2038.9,11.07312885]
[1770448232665,10.84710288,2040.5,2038.9,11.07744591]
[1770448232869,10.8428006,2040.3,2038.9,0.00431706]
[1770448233062,11.0880306,2040.1,2038.9,0.00431706]
[1770448234469,10.8428006,2039.4,2037.3,11.07312885]
[1770448235263,10.8428006,2039.4,2037.3,11.07707044]
[1770448235467,11.0881206,2039.4,2037.3,11.07707044]
[1770448235764,10.75875849,2039.2,2037.3,11.07707044]
[1770448235970,10.75875849,2039.0,2037.3,11.07707044]
[1770448236166,10.7637646,2039.0,2037.3,11.07707044]
[1770448236366,10.75875849,2038.8,2037.3,11.07707044]
[1770448236562,10.75875849,2038.8,2037.3,0.00394159]
[1770448236768,10.75875849,2038.4,2036.7,11.2368695]
[1770448237267,10.75875849,2038.4,2037.1,11.2368695]
[1770448237460,0.00500611,2039.0,2037.5,11.2368695]
[1770448237461,10.75875849,2038.9,2037.5,11.2368695]
[1770448237662,10.75875849,2038.9,2037.5,11.24035297]
[1770448237968,0.00500611,2039.0,2037.9,11.2368695]
[1770448238265,10.7637646,2039.0,2037.9,11.2368695]
[1770448238567,10.7637646,2039.0,2037.5,0.00348347]
[1770448238568,11.0091246,2039.0,2037.5,0.00348347]
[1770448238760,10.75875849,2038.8,2037.5,0.00348347]
[1770448238970,10.75875849,2038.5,2037.5,0.00348347]
[1770448239265,0.24543,2038.4,2036.8,11.2368695]
[1770448239571,10.75875849,2038.3,2036.8,11.2368695]
[1770448240069,10.75875849,2038.3,2036.8,11.24274809]
[1770448241961,10.75875849,2037.7,2036.1,11.2368695]
[1770448242460,10.75875849,2037.7,2036.7,0.57430605]
[1770448242666,10.75875849,2037.7,2036.1,11.2368695]
[1770448242864,10.75875849,2037.4,2035.6,11.2368695]
[1770448243069,10.76350681,2037.4,2035.6,11.24143798]
[1770448243872,10.75875849,2037.2,2035.6,11.24143798]
[1770448244564,11.00432849,2037.2,2035.6,11.24143798]
[1770448244972,10.75875849,2036.7,2035.6,0.00456848]
[1770448245172,10.75875849,2036.7,2034.9,11.2368695]
[1770448246069,10.75875849,2036.7,2034.9,11.24034067]
[1770448246764,10.75875849,2036.7,2035.3,11.2368695]
[1770448247169,11.00439849,2036.7,2035.3,11.2368695]
[1770448247469,10.75875849,2036.5,2034.9,11.24034067]
[1770448247672,10.75875849,2036.5,2034.9,0.00347117]
[1770448247862,10.75875849,2036.5,2034.2,11.2368695]
[1770448247863,10.75875849,2035.8,2034.2,11.2368695]
[1770448248060,10.75875849,2035.6,2033.8,11.2368695]
[1770448248463,10.75875849,2035.6,2033.4,11.2368695]
[1770448248664,10.75875849,2035.6,2032.9,0.24609]
[1770448248665,10.75875849,2035.2,2033.1,11.2368695]
[1770448248874,10.75875849,2035.0,2033.1,11.2368695]
[1770448250574,10.75875849,2035.0,2033.5,11.2368695]
[1770448250769,10.75875849,2035.0,2033.0,4.72473573]
[1770448250770,10.75875849,2035.0,2033.0,11.2368695]
[1770448250973,10.75875849,2035.0,2033.6,11.2368695]
[1770448251473,0.00408792,2035.2,2034.0,11.2368695]
[1770448251875,10.76284641,2035.2,2034.0,11.2368695]
[1770448252273,0.00408792,2035.2,2034.0,11.2368695]
[1770448252475,0.00408792,2035.2,2034.0,15.96160523]
[1770448252676,0.00408792,2035.2,2034.1,11.2368695]
[1770448252973,10.76284641,2035.2,2033.4,11.2368695]
[1770448253769,10.76284641,2035.2,2033.6,11.2368695]
[1770448253967,10.76284641,2035.2,2033.2,11.2368695]
[1770448254173,10.75875849,2035.0,2033.2,11.2368695]
[1770448257671,10.75875849,2034.6,2032.7,11.2368695]
[1770448258076,10.75875849,2034.6,2032.8,11.2368695]
[1770448259676,10.75875849,2034.6,2033.0,4.72473573]
[1770448259872,10.75875849,2034.6,2033.1,11.2368695]
[1770448260479,0.24599,2033.8,2032.1,11.2368695]
[1770448260678,10.75875849,2033.5,2031.8,11.2368695]
[1770448260879,10.76391834,2033.5,2032.0,11.2368695]
[1770448261384,10.76391834,2033.5,2031.4,11.4831395]
[1770448261884,10.76391834,2033.5,2031.8,11.2368695]
[1770448262290,10.76391834,2033.5,2032.2,11.2368695]
[1770448263291,10.76391834,2033.5,2031.8,11.2368695]
[1770448263791,10.76391834,2033.5,2032.1,4.72473573]
[1770448263986,10.76391834,2033.5,2031.7,4.97096573]
[1770448263987,10.76391834,2033.5,2032.2,11.2368695]
[1770448264284,10.76391834,2033.5,2031.7,4.97096573]
[1770448264285,10.76391834,2033.5,2031.8,11.2368695]
[1770448264993,11.00993834,2033.5,2031.8,11.2368695]
[1770448265194,10.75875849,2033.3,2031.4,11.2368695]
[1770448265696,11.00479849,2033.3,2031.4,11.2368695]
[1770448266191,11.00479849,2033.3,2031.8,11.56419894]
[1770448266192,10.75875849,2033.3,2031.8,11.56419894]
[1770448266691,10.75875849,2033.3,2032.2,11.56419894]
[1770448266993,11.59897688,2033.5,2032.2,11.56419894]
[1770448267892,11.59897688,2033.5,2031.8,11.56419894]
[1770448268392,11.59381703,2034.1,2032.9,11.56419894]
[1770448269493,11.59381703,2034.1,2032.9,11.56935878]
[1770448269494,11.5987523,2034.1,2032.9,11.56935878]
[1770448270787,11.5987523,2034.1,2032.9,0.00515984]
[1770448271494,11.63297243,2033.6,2031.9,11.4281259]
[1770448271693,11.63297243,2033.4,2031.9,11.4281259]
[1770448271895,11.63297243,2033.4,2031.5,11.4281259]
[1770448272096,11.63297243,2033.2,2031.5,11.4281259]
[1770448272399,11.87903243,2033.2,2031.5,11.4281259]
[1770448272796,0.24607,2033.1,2031.5,11.4281259]
[1770448273097,11.63297243,2033.0,2031.5,11.4281259]
[1770448273293,11.63297243,2033.0,2031.2,16.15286163]
[1770448273492,11.63297243,2033.0,2031.2,11.4281259]
[1770448273899,11.87905243,2033.0,2031.2,11.4281259]
[1770448275299,11.87905243,2033.0,2031.3,11.4281259]
[1770448275498,11.63297243,2033.0,2031.7,11.4281259]
[1770448275701,11.87905243,2033.0,2031.3,11.4281259]
[1770448276594,11.63297243,2033.2,2032.0,4.72473573]
[1770448276793,11.63297243,2033.2,2031.8,11.4281259]
[1770448277501,11.63297243,2033.2,2031.5,11.4281259]
[1770448278002,14.41887292,2033.2,2031.5,11.4281259]
[1770448278298,11.63297243,2033.2,2031.5,11.4281259]
[1770448278500,11.63297243,2033.2,2031.3,11.4281259]
[1770448278698,14.41887292,2033.2,2031.3,11.4281259]
[1770448278996,11.63297243,2033.2,2031.3,11.4281259]
[1770448279196,11.63297243,2033.0,2030.4,2.8761084]
[1770448279402,11.63297243,2031.8,2030.1,11.4281259]
[1770448279707,11.63297243,2031.6,2030.1,0.00633269]
[1770448279899,11.63297243,2031.6,2029.5,11.4281259]
[1770448280201,11.63297243,2031.5,2029.6,11.4281259]
[1770448281203,11.63297243,2031.4,2029.6,11.4281259]
[1770448281898,11.63297243,2031.2,2029.2,11.4281259]
[1770448282601,11.63297243,2031.2,2029.6,11.4281259]
[1770448285002,11.63297243,2030.8,2028.7,11.4281259]
[1770448289005,11.63297243,2030.8,2029.1,11.4281259]
[1770448290306,2.78590049,2031.4,2029.1,11.4281259]
[1770448290513,11.63297243,2031.2,2029.4,11.4281259]
[1770448290709,11.63297243,2031.0,2029.4,11.4281259]
[1770448292513,11.63297243,2031.3,2029.4,11.4281259]
[1770448292712,11.63297243,2031.3,2029.6,11.4281259]
[1770448293810,11.63297243,2031.6,2029.8,11.6745959]
[1770448294510,11.63297243,2031.6,2030.0,11.4281259]
[1770448294713,0.00605761,2031.8,2030.0,11.6745659]
[1770448294907,11.63903004,2031.8,2030.0,11.6745659]
[1770448295111,11.63903004,2031.8,2030.0,11.4281259]
[1770448296011,11.88526004,2031.8,2030.0,11.4281259]
[1770448296319,11.25009025,2031.4,2030.0,11.4281259]
[1770448297716,0.25228761,2031.8,2030.0,11.6745659]
[1770448297717,11.25614786,2031.8,2030.0,11.6745659]
[1770448298413,11.25614786,2031.8,2030.0,11.4281259]
[1770448298719,11.50237786,2031.8,2030.0,11.4281259]
[1770448299616,11.25009025,2031.7,2030.0,11.4281259]
[1770448301214,14.03599074,2031.7,2030.0,11.4281259]
[1770448301420,11.25009025,2031.5,2030.0,11.4281259]
[1770448302815,14.03599074,2031.5,2030.0,11.4281259]
[1770448303015,11.25009025,2031.4,2030.0,11.4281259]
[1770448303318,11.25009025,2031.2,2029.1,11.32150657]
[1770448303518,11.25009025,2031.2,2029.1,11.56808657]
[1770448304018,11.25009025,2031.2,2029.3,11.32150657]
[1770448304718,14.03599074,2031.1,2029.3,11.32150657]
[1770448305112,11.25009025,2031.1,2029.3,11.32150657]
[1770448305416,14.03599074,2031.0,2029.3,11.32150657]
[1770448306112,11.25009025,2031.0,2029.3,11.32150657]
[1770448306418,14.03599074,2031.0,2029.3,11.32150657]
[1770448306614,14.03599074,2030.9,2029.3,11.32150657]
[1770448306812,11.25009025,2031.1,2029.6,11.32150657]
[1770448308419,11.25009025,2031.3,2029.8,11.32150657]
[1770448309115,11.25009025,2031.3,2029.8,10.63671004]
[1770448309316,14.03599074,2031.3,2029.8,10.63671004]
[1770448311314,11.25009025,2031.3,2029.8,10.63671004]
[1770448314226,11.49640025,2031.3,2029.8,10.63671004]
[1770448314417,11.25009025,2031.0,2029.8,10.63671004]
[1770448315118,14.03599074,2031.3,2029.8,10.88320004]
[1770448315314,11.25009025,2031.3,2029.8,10.88320004]
[1770448316726,11.25009025,2031.0,2029.8,11.32150657]
[1770448317212,11.25009025,2030.8,2029.8,11.32150657]
[1770448317720,14.03599074,2030.8,2029.3,11.32150657]
[1770448317918,11.25009025,2030.6,2029.3,11.32150657]
[1770448318814,14.03599074,2030.8,2029.6,11.32150657]
[1770448319018,11.25009025,2030.8,2029.6,11.32150657]
[1770448319625,11.25009025,2031.0,2029.7,11.32150657]
[1770448319823,11.25009025,2031.3,2029.8,11.32150657]
[1770448320122,14.03599074,2031.3,2029.7,14.19761497]
[1770448320320,11.25009025,2030.9,2029.7,11.32150657]
[1770448321125,14.03599074,2031.2,2029.7,11.32150657]
[1770448321324,14.03599074,2031.2,2029.9,11.56798657]
[1770448321525,14.03599074,2031.4,2029.9,11.56798657]
[1770448322626,11.25009025,2031.4,2030.1,11.32150657]
[1770448324324,4.92505761,2031.8,2030.1,11.32150657]
[1770448324325,14.04204835,2031.8,2030.4,11.32150657]
[1770448324522,11.25614786,2031.8,2030.4,11.32150657]
[1770448325532,11.25614786,2031.8,2030.5,11.32150657]
[1770448326034,0.00605761,2031.8,2030.8,10.91094929]
[1770448326227,11.7286247,2031.8,2030.8,10.91094929]
[1770448326421,11.7286247,2031.8,2030.5,10.91094929]
[1770448327330,14.50846758,2032.4,2030.8,10.91094929]
[1770448327524,14.50846758,2032.7,2031.1,11.15727929]
[1770448327729,11.72256709,2032.7,2031.1,11.15727929]
[1770448327929,11.72256709,2032.5,2031.1,10.91094929]
[1770448328327,11.72256709,2032.5,2031.1,10.91589735]
[1770448328328,11.72868634,2032.5,2031.1,10.91589735]
[1770448328634,11.72256709,2032.3,2031.1,10.91589735]
[1770448329128,14.50846758,2032.3,2031.1,0.00494806]
[1770448329331,11.47856838,2031.8,2030.5,10.88974997]
[1770448329534,11.47856838,2031.4,2029.7,10.88974997]
[1770448329832,14.26446887,2031.4,2029.7,10.88974997]